fUST/lending_fUST_20250823
["ID","MTS","AMOUNT","RATE_DAILY","PERIOD"]
[381034499,1755963156423,74.28335145,0.00013699,2]
[381034506,1755963211649,-169.21952857,0.00025943,4]
[381034507,1755963214351,-172.70484335,0.00025943,4]
[381034508,1755963214375,-87.51864146,0.00025943,4]
[381034509,1755963222250,-259.56725406,0.00025943,4]
[381034510,1755963222701,215.94678008,0.00024,3]
[381034511,1755963225036,-165.80066236,0.00025943,4]
[381034512,1755963225058,-10.02927279,0.00026745,2]
[381034513,1755963228009,220.0,0.00021206,2]
[381034514,1755963228629,-220.0,0.00026406,2]
[381034515,1755963228666,-407.44385007,0.00026745,2]
[381034517,1755963229964,435.39718921,0.00025205,2]
[381034518,1755963231218,-300.0,0.00026745,2]
[381034519,1755963236625,-244.1093505,0.00026745,2]
[381034520,1755963238017,-232.81674726,0.00026745,2]
[381034521,1755963246151,1404.36994783,0.00025205,2]
[381034522,1755963261649,-190.52140825,0.00026745,2]
[381034523,1755963264242,-191.06581033,0.00026745,2]
[381034524,1755963276774,381.58721858,0.00025205,2]
[381034525,1755963290169,273.53949752,0.00020763,2]
[381034526,1755963290234,273.53949752,0.0002249,2]
[381034527,1755963290281,273.53949752,0.00024216,2]
[381034529,1755963375071,150.0,0.00025205,2]
[381034533,1755963454704,205.1546232,0.00020763,2]
[381034534,1755963585541,-158.8399593,0.00025943,2]
[381034535,1755963680105,186.02,0.00028576,30]
[381034536,1755963691567,-66.36253392,0.00025943,2]
[381034537,1755963691590,-234.32346573,0.00026213,2]
[381034538,1755963693262,-0.48682727,0.00026213,2]
[381034539,1755963693283,-185.72848102,0.00026244,2]
[381034540,1755963693307,-94.0193814,0.00026264,2]
[381034541,1755963698102,-205.9806186,0.00026264,2]
[381034542,1755963698124,-54.85460736,0.00026265,2]
[381034543,1755963701765,-233.28993604,0.00026265,2]
[381034544,1755963705366,1075.04585134,0.00025205,2]
[381034545,1755963707621,-11.8554566,0.00026265,2]
[381034546,1755963707646,-205.8545434,0.00026265,2]
[381034547,1755963709320,-94.1454566,0.00026265,2]
[381034548,1755963709342,-82.1806454,0.00026265,2]
[381034549,1755963721290,394.036102,0.00025205,2]
[381034550,1755963733581,-172.62340555,0.00026165,2]
[381034551,1755963733605,-128.55428193,0.00026265,2]
[381034552,1755963735293,-89.26507267,0.00026265,2]
[381034553,1755963735316,-155.34809731,0.00026265,2]
[381034554,1755963737041,-189.6246778,0.00026265,2]
[381034555,1755963737421,545.79085746,0.00025205,2]
[381034556,1755963741362,-3.02722489,0.00026265,2]
[381034557,1755963741384,-300.0,0.00026265,2]
[381034558,1755963741407,-16.83782004,0.00026265,12]
[381034559,1755963745012,-167.71874772,0.00026265,12]
[381034560,1755963746635,-197.59942239,0.00026265,12]
[381034561,1755963748096,-156.15012828,0.00026166,2]
[381034562,1755963750071,-185.67,0.00026166,2]
[381034563,1755963753652,1216.62802112,0.00025205,2]
[381034564,1755963772931,-200.0,0.00026166,2]
[381034565,1755963775002,-180.13495507,0.00026166,2]
[381034566,1755963776504,-161.01555784,0.00026166,2]
[381034567,1755963783871,-179.11559908,0.00026166,2]
[381034568,1755963784253,541.15051291,0.00025205,2]
[381034569,1755963789575,-231.88663594,0.00026166,2]
[381034570,1755963791759,-16.98926095,0.00026166,2]
[381034571,1755963791784,-124.17500985,0.00026265,12]
[381034572,1755963791809,-94.85822614,0.00026265,2]
[381034573,1755963798515,-176.43113628,0.00026265,2]
[381034574,1755963800572,-247.94204768,0.00026265,2]
[381034575,1755963800600,647.02473196,0.00025205,2]
[381034576,1755963804732,-327.30394625,0.00026265,2]
[381034577,1755963806330,-206.51508165,0.00026265,2]
[381034578,1755963813893,-146.949562,0.00026265,2]
[381034579,1755963813917,-118.70263186,0.00026265,2]
[381034580,1755963816146,958.19221186,0.00025205,2]
[381034581,1755963817475,-181.29736814,0.00026265,2]
[381034582,1755963817498,-14.13300329,0.00026266,2]
[381034583,1755963821455,-173.61685511,0.00026266,2]
[381034584,1755963823460,-353.64881743,0.00026266,2]
[381034585,1755963830489,-151.0,0.00026266,2]
[381034586,1755963830512,-55.91517266,0.00026266,2]
[381034587,1755963832414,714.77410844,0.00025205,2]
[381034588,1755963832439,273.57412939,0.00025205,2]
[381034589,1755963832591,-180.18728878,0.00026266,2]
[381034590,1755963836661,-247.54462276,0.00026266,2]
[381034591,1755963838135,-171.297184,0.00025636,2]
[381034592,1755963838157,-205.1387465,0.00026266,2]
[381034593,1755963840208,-172.74858224,0.00026266,2]
[381034594,1755963844815,-320.58599678,0.00026266,2]
[381034595,1755963846236,-360.86671172,0.00026266,2]
[381034597,1755963980473,2264.96382111,0.00025,14]
[381034598,1755964005797,277.0,0.00028576,120]
[381034599,1755964042113,1865.28430544,0.00025205,2]
[381034600,1755964048098,-1147.09187005,0.00026198,2]
[381034601,1755964048127,-300.0,0.00026265,2]
[381034602,1755964048158,-698.0,0.00026265,2]
[381034603,1755964048189,-151.0,0.00026266,2]
[381034604,1755964048219,-34122.92533623,0.00026266,2]
[381034605,1755964048249,-244.6280391,0.00026298,2]
[381034606,1755964048281,-2159.0,0.00026388,7]
[381034607,1755964048313,-3061.0,0.00026418,2]
[381034608,1755964048344,-3061.0,0.00026592,7]
[381034609,1755964048374,-26424.94567163,0.00026745,2]
[381034610,1755964048405,-2250.4322209,0.00026745,2]
[381034611,1755964048435,-376.14580871,0.00027,3]
[381034612,1755964048466,-711.0,0.0002709,2]
[381034613,1755964048498,-170.0,0.00027186,2]
[381034614,1755964048531,-170.0,0.00027226,2]
[381034615,1755964048562,-170.0,0.00027366,2]
[381034616,1755964048592,-170.0,0.00027373,2]
[381034617,1755964048625,-175.7517884,0.00027378,2]
[381034618,1755964048657,-711.0,0.00027417,7]
[381034619,1755964048688,-170.0,0.00027478,2]
[381034620,1755964048710,-170.0,0.00027494,7]
[381034621,1755964048913,-170.0,0.00027505,2]
[381034622,1755964048935,-269.84056224,0.00027577,2]
[381034623,1755964048958,-170.0,0.00027591,2]
[381034624,1755964048979,-153.017268,0.00027653,20]
[381034625,1755964049001,-170.0,0.00027668,2]
[381034626,1755964049023,-245.62,0.00027879,10]
[381034627,1755964049042,-294.75,0.0002788,10]
[381034628,1755964049062,-569.31,0.0002788,3]
[381034629,1755964049083,-170.0,0.00027889,2]
[381034630,1755964049103,-15699.08774862,0.00027889,2]
[381034631,1755964049124,-194.72792766,0.00027889,2]
[381034632,1755964049147,-2030.296672,0.00027889,2]
[381034633,1755964049168,-302.0,0.00027889,2]
[381034634,1755964049189,-250.0,0.00027889,2]
[381034635,1755964049210,-250.0,0.00027889,2]
[381034636,1755964049232,-250.0,0.00027889,2]
[381034637,1755964049253,-250.0,0.00027889,2]
[381034638,1755964049274,-1543.03,0.00027889,2]
[381034639,1755964049296,-448.12944546,0.00027889,2]
[381034640,1755964049316,-725.59209374,0.0002789,2]
[381034641,1755964049338,-151.0,0.0002789,7]
[381034642,1755964049359,-151.0,0.0002789,7]
[381034643,1755964049379,-151.0,0.0002789,7]
[381034644,1755964049400,-154.040978,0.0002789,7]
[381034645,1755964049419,-151.0,0.0002789,7]
[381034646,1755964049439,-151.0,0.0002789,7]
[381034647,1755964049459,-151.0,0.0002789,7]
[381034648,1755964049478,-151.0,0.0002789,7]
[381034649,1755964049498,-283.24388,0.0002789,7]
[381034650,1755964049518,-151.0,0.0002789,7]
[381034651,1755964049537,-151.0,0.0002789,7]
[381034652,1755964049557,-151.0,0.0002789,7]
[381034653,1755964049576,-151.0,0.0002789,7]
[381034654,1755964049595,-151.0,0.0002789,7]
[381034655,1755964049614,-151.0,0.0002789,7]
[381034656,1755964049634,-250.565766,0.0002789,7]
[381034657,1755964049660,-250.565766,0.0002789,7]
[381034658,1755964049679,-205.476788,0.0002789,7]
[381034659,1755964049700,-250.565766,0.0002789,7]
[381034660,1755964049723,-250.565766,0.0002789,7]
[381034661,1755964049744,-250.565766,0.0002789,7]
[381034662,1755964049766,-250.565766,0.0002789,7]
[381034663,1755964049785,-250.565766,0.0002789,7]
[381034664,1755964049805,-250.565766,0.0002789,7]
[381034665,1755964049824,-151.0,0.0002789,7]
[381034666,1755964049844,-151.0,0.0002789,7]
[381034667,1755964049863,-151.0,0.0002789,7]
[381034668,1755964049883,-151.0,0.0002789,7]
[381034669,1755964049904,-151.0,0.0002789,7]
[381034670,1755964049927,-227.636256,0.0002789,7]
[381034671,1755964049946,-151.0,0.0002789,7]
[381034672,1755964049966,-151.0,0.0002789,7]
[381034673,1755964049986,-177.724006,0.0002789,7]
[381034674,1755964050006,-177.724006,0.0002789,7]
[381034675,1755964050027,-177.724006,0.0002789,7]
[381034676,1755964050046,-177.724006,0.0002789,7]
[381034677,1755964050067,-151.0,0.0002789,7]
[381034678,1755964050087,-151.0,0.0002789,7]
[381034679,1755964050106,-151.0,0.0002789,7]
[381034680,1755964050128,-151.0,0.0002789,7]
[381034681,1755964050149,-151.0,0.0002789,7]
[381034682,1755964050169,-245.395636,0.0002789,7]
[381034683,1755964050191,-151.0,0.0002789,7]
[381034684,1755964050212,-151.0,0.0002789,7]
[381034685,1755964050234,-151.0,0.0002789,7]
[381034686,1755964050256,-151.0,0.0002789,7]
[381034687,1755964050276,-151.0,0.0002789,7]
[381034688,1755964050296,-151.0,0.0002789,7]
[381034689,1755964050317,-178.227204,0.0002789,7]
[381034690,1755964050338,-178.227204,0.0002789,7]
[381034691,1755964050358,-178.227204,0.0002789,7]
[381034692,1755964050379,-178.227204,0.0002789,7]
[381034693,1755964050400,-178.227204,0.0002789,7]
[381034694,1755964050425,-178.227204,0.0002789,7]
[381034695,1755964050446,-178.227204,0.0002789,7]
[381034696,1755964050465,-178.227204,0.0002789,7]
[381034697,1755964050487,-151.0,0.0002789,7]
[381034698,1755964050509,-151.0,0.0002789,7]
[381034699,1755964050531,-3070.254942,0.0002789,7]
[381034700,1755964050552,-3070.254942,0.0002789,7]
[381034701,1755964050572,-151.0,0.0002789,7]
[381034702,1755964050592,-152.947077,0.0002789,7]
[381034703,1755964050613,-3070.254942,0.0002789,7]
[381034704,1755964050634,-3070.254942,0.0002789,7]
[381034705,1755964050658,-3070.254942,0.0002789,7]
[381034706,1755964050680,-3070.254942,0.0002789,7]
[381034707,1755964050702,-3070.254942,0.0002789,7]
[381034708,1755964050724,-3070.254942,0.0002789,7]
[381034709,1755964050744,-151.0,0.0002789,7]
[381034710,1755964050764,-151.0,0.0002789,7]
[381034711,1755964050784,-151.0,0.0002789,7]
[381034712,1755964050805,-151.0,0.0002789,7]
[381034713,1755964050828,-157.076506,0.0002789,7]
[381034714,1755964050851,-203.697702,0.0002789,7]
[381034715,1755964050871,-203.697702,0.0002789,7]
[381034716,1755964050892,-203.697702,0.0002789,7]
[381034717,1755964050914,-203.697702,0.0002789,7]
[381034718,1755964050935,-151.0,0.0002789,7]
[381034719,1755964050959,-151.0,0.0002789,7]
[381034720,1755964050985,-203.697702,0.0002789,7]
[381034721,1755964051006,-151.0,0.0002789,7]
[381034722,1755964051027,-203.697702,0.0002789,7]
[381034723,1755964051048,-151.0,0.0002789,7]
[381034724,1755964051069,-448.062136,0.0002789,7]
[381034725,1755964051089,-203.697702,0.0002789,7]
[381034726,1755964051109,-448.062136,0.0002789,7]
[381034727,1755964051130,-203.697702,0.0002789,7]
[381034728,1755964051150,-448.062136,0.0002789,7]
[381034729,1755964051171,-448.062136,0.0002789,7]
[381034730,1755964051191,-151.0,0.0002789,7]
[381034731,1755964051212,-448.062136,0.0002789,7]
[381034732,1755964051232,-151.0,0.0002789,7]
[381034733,1755964051365,-448.062136,0.0002789,7]
[381034734,1755964051387,-151.0,0.0002789,7]
[381034735,1755964051407,-160.0,0.0002789,7]
[381034736,1755964051429,-448.062136,0.0002789,7]
[381034737,1755964051451,-448.062136,0.0002789,7]
[381034738,1755964051474,-725.805357,0.0002789,7]
[381034739,1755964051495,-151.0,0.0002789,7]
[381034740,1755964051515,-151.0,0.0002789,7]
[381034741,1755964051536,-725.805357,0.0002789,7]
[381034742,1755964051557,-725.805357,0.0002789,7]
[381034743,1755964051578,-151.0,0.0002789,7]
[381034744,1755964051598,-215.94678008,0.0002789,7]
[381034745,1755964051620,-725.805357,0.0002789,7]
[381034746,1755964051642,-151.0,0.0002789,7]
[381034747,1755964051667,-725.805357,0.0002789,7]
[381034748,1755964051690,-725.805357,0.0002789,7]
[381034749,1755964051710,-151.0,0.0002789,7]
[381034750,1755964051733,-725.805357,0.0002789,7]
[381034751,1755964051754,-151.0,0.0002789,7]
[381034752,1755964051773,-151.0,0.0002789,7]
[381034753,1755964051793,-151.0,0.0002789,7]
[381034754,1755964051814,-725.805357,0.0002789,7]
[381034755,1755964051836,-725.805357,0.0002789,7]
[381034756,1755964051857,-725.805357,0.0002789,7]
[381034757,1755964051878,-725.805357,0.0002789,7]
[381034758,1755964051900,-725.805357,0.0002789,7]
[381034759,1755964051920,-250.36592949,0.0002789,7]
[381034760,1755964051941,-529.05847148,0.0002789,7]
[381034761,1755964051961,-151.0,0.0002789,7]
[381034762,1755964051980,-151.0,0.0002789,7]
[381034763,1755964052004,-151.0,0.0002789,7]
[381034764,1755964052024,-151.0,0.0002789,7]
[381034765,1755964052044,-151.0,0.0002789,7]
[381034766,1755964052065,-151.0,0.0002789,7]
[381034767,1755964052097,-151.0,0.0002789,7]
[381034768,1755964052117,-151.0,0.0002789,7]
[381034769,1755964052138,-151.0,0.0002789,7]
[381034770,1755964052160,-235.197294,0.0002789,7]
[381034771,1755964052180,-151.0,0.0002789,7]
[381034772,1755964052201,-151.0,0.0002789,7]
[381034773,1755964052222,-151.0,0.0002789,7]
[381034774,1755964052243,-151.0,0.0002789,7]
[381034775,1755964052264,-151.0,0.0002789,7]
[381034776,1755964052285,-151.0,0.0002789,7]
[381034777,1755964052305,-151.0,0.0002789,7]
[381034778,1755964052326,-151.0,0.0002789,7]
[381034779,1755964052348,-151.0,0.0002789,7]
[381034780,1755964052370,-151.0,0.0002789,7]
[381034781,1755964052390,-151.0,0.0002789,7]
[381034782,1755964052412,-470.315175,0.0002789,7]
[381034783,1755964052432,-151.0,0.0002789,7]
[381034784,1755964052453,-470.315175,0.0002789,7]
[381034785,1755964052473,-151.0,0.0002789,7]
[381034786,1755964052495,-470.315175,0.0002789,7]
[381034787,1755964052519,-151.0,0.0002789,7]
[381034788,1755964052540,-151.0,0.0002789,7]
[381034789,1755964052561,-151.0,0.0002789,7]
[381034790,1755964052583,-470.315175,0.0002789,7]
[381034791,1755964052603,-151.0,0.0002789,7]
[381034792,1755964052624,-470.315175,0.0002789,7]
[381034793,1755964052648,-470.315175,0.0002789,7]
[381034794,1755964052669,-470.315175,0.0002789,7]
[381034795,1755964052691,-470.315175,0.0002789,7]
[381034796,1755964052712,-470.315175,0.0002789,7]
[381034797,1755964052734,-151.0,0.0002789,7]
[381034798,1755964052755,-151.0,0.0002789,7]
[381034799,1755964052775,-151.0,0.0002789,7]
[381034800,1755964052796,-470.315175,0.0002789,7]
[381034801,1755964052821,-470.315175,0.0002789,7]
[381034802,1755964052844,-470.315175,0.0002789,7]
[381034803,1755964052864,-151.0,0.0002789,7]
[381034804,1755964052885,-151.0,0.0002789,7]
[381034805,1755964052907,-227.129676,0.0002789,7]
[381034806,1755964052926,-217.0334113,0.0002789,7]
[381034807,1755964052946,-151.0,0.0002789,7]
[381034808,1755964052966,-151.0,0.0002789,7]
[381034809,1755964052986,-151.0,0.0002789,7]
[381034810,1755964053006,-291.929321,0.0002789,7]
[381034811,1755964053026,-232.37252479,0.0002789,7]
[381034812,1755964053047,-151.0,0.0002789,7]
[381034813,1755964053068,-151.0,0.0002789,7]
[381034814,1755964053089,-151.0,0.0002789,7]
[381034815,1755964053112,-151.0,0.0002789,7]
[381034816,1755964053136,-181.2,0.0002789,7]
[381034817,1755964053160,-151.0,0.0002789,2]
[381034818,1755964053182,-844.50316758,0.0002789,7]
[381034819,1755964053203,-160.15851129,0.0002789,2]
[381034820,1755964053226,-2012.575767,0.0002789,7]
[381034821,1755964053249,-2012.575767,0.0002789,7]
[381034822,1755964053272,-2012.575767,0.0002789,7]
[381034823,1755964053296,-2012.575767,0.0002789,7]
[381034824,1755964053319,-2012.575767,0.0002789,7]
[381034825,1755964053342,-2012.575767,0.0002789,7]
[381034826,1755964053364,-2012.575767,0.0002789,7]
[381034827,1755964053386,-2012.575767,0.0002789,7]
[381034828,1755964053409,-2012.575767,0.0002789,7]
[381034829,1755964053431,-151.0,0.0002789,7]
[381034830,1755964053453,-151.0,0.0002789,7]
[381034831,1755964053475,-152.50583,0.0002789,7]
[381034832,1755964053496,-2012.575767,0.0002789,7]
[381034833,1755964053519,-2012.575767,0.0002789,7]
[381034834,1755964053541,-2012.575767,0.0002789,7]
[381034835,1755964053563,-151.0,0.0002789,7]
[381034836,1755964053584,-151.0,0.0002789,7]
[381034837,1755964053606,-151.0,0.0002789,7]
[381034838,1755964053628,-151.0,0.0002789,7]
[381034839,1755964053652,-151.0,0.0002789,7]
[381034840,1755964053791,-151.0,0.0002789,7]
[381034841,1755964053813,-151.0,0.0002789,7]
[381034842,1755964053836,-151.0,0.0002789,7]
[381034843,1755964053858,-151.0,0.0002789,7]
[381034844,1755964053880,-156.608266,0.0002789,7]
[381034845,1755964053902,-151.0,0.0002789,7]
[381034846,1755964053923,-151.0,0.0002789,7]
[381034847,1755964053946,-151.0,0.0002789,7]
[381034848,1755964053968,-151.0,0.0002789,7]
[381034849,1755964053990,-222.75439,0.0002789,7]
[381034850,1755964054013,-222.75439,0.0002789,7]
[381034851,1755964054038,-222.75439,0.0002789,7]
[381034852,1755964054059,-222.75439,0.0002789,7]
[381034853,1755964054080,-222.75439,0.0002789,7]
[381034854,1755964054102,-222.75439,0.0002789,7]
[381034855,1755964054125,-222.75439,0.0002789,7]
[381034856,1755964054157,-222.75439,0.0002789,7]
[381034857,1755964054181,-222.75439,0.0002789,7]
[381034858,1755964054204,-222.75439,0.0002789,7]
[381034859,1755964054227,-222.75439,0.0002789,7]
[381034860,1755964054249,-222.75439,0.0002789,7]
[381034861,1755964054271,-222.75439,0.0002789,7]
[381034862,1755964054293,-222.75439,0.0002789,7]
[381034863,1755964054316,-222.75439,0.0002789,7]
[381034864,1755964054338,-222.75439,0.0002789,7]
[381034865,1755964054359,-151.0,0.0002789,7]
[381034866,1755964054380,-151.0,0.0002789,7]
[381034867,1755964054404,-151.0,0.0002789,7]
[381034868,1755964054425,-151.0,0.0002789,7]
[381034869,1755964054447,-151.0,0.0002789,7]
[381034870,1755964054468,-151.0,0.0002789,7]
[381034871,1755964054489,-151.0,0.0002789,7]
[381034872,1755964054510,-151.0,0.0002789,7]
[381034873,1755964054530,-151.0,0.0002789,7]
[381034874,1755964054550,-173.845551,0.0002789,7]
[381034875,1755964054570,-3880.72043754,0.0002789,2]
[381034876,1755964054591,-151.0,0.0002789,7]
[381034877,1755964054611,-1000.0,0.0002789,2]
[381034878,1755964054633,-151.0,0.0002789,7]
[381034879,1755964054659,-1000.0,0.0002789,2]
[381034880,1755964054681,-151.0,0.0002789,7]
[381034881,1755964054704,-463.661193,0.0002789,2]
[381034882,1755964054725,-151.0,0.0002789,7]
[381034883,1755964054748,-151.0,0.0002789,7]
[381034884,1755964054770,-151.0,0.0002789,7]
[381034885,1755964054791,-151.0,0.0002789,7]
[381034886,1755964054813,-151.0,0.0002789,7]
[381034887,1755964054834,-151.0,0.0002789,7]
[381034888,1755964054854,-151.0,0.0002789,7]
[381034889,1755964054875,-151.0,0.0002789,7]
[381034890,1755964054896,-151.0,0.0002789,7]
[381034891,1755964054918,-151.0,0.0002789,7]
[381034892,1755964054939,-151.0,0.0002789,7]
[381034893,1755964054960,-151.0,0.0002789,7]
[381034894,1755964054987,-151.0,0.0002789,7]
[381034895,1755964055009,-151.0,0.0002789,7]
[381034896,1755964055029,-151.0,0.0002789,7]
[381034897,1755964055049,-209.527777,0.0002789,7]
[381034898,1755964055072,-223.020353,0.0002789,7]
[381034899,1755964055093,-151.635013,0.0002789,7]
[381034900,1755964055113,-151.0,0.0002789,7]
[381034901,1755964055133,-151.0,0.0002789,7]
[381034902,1755964055156,-151.0,0.0002789,7]
[381034903,1755964055177,-151.0,0.0002789,7]
[381034904,1755964055197,-151.0,0.0002789,7]
[381034905,1755964055217,-151.0,0.0002789,7]
[381034906,1755964055239,-151.0,0.0002789,7]
[381034907,1755964055260,-151.0,0.0002789,7]
[381034908,1755964055282,-151.0,0.0002789,7]
[381034909,1755964055303,-152.669651,0.0002789,7]
[381034910,1755964055326,-547.859475,0.0002789,7]
[381034911,1755964055348,-547.859475,0.0002789,7]
[381034912,1755964055370,-547.859475,0.0002789,7]
[381034913,1755964055391,-417.15472785,0.0002789,7]
[381034914,1755964055413,-151.0,0.0002789,7]
[381034915,1755964055434,-151.0,0.0002789,7]
[381034916,1755964055456,-151.0,0.0002789,7]
[381034917,1755964055478,-151.0,0.0002789,7]
[381034918,1755964055500,-151.0,0.0002789,7]
[381034919,1755964055522,-221.35006,0.0002789,7]
[381034920,1755964055542,-376.14580871,0.0002789,7]
[381034921,1755964055564,-633.082913,0.0002789,7]
[381034922,1755964055586,-633.082913,0.0002789,7]
[381034923,1755964055607,-633.082913,0.0002789,7]
[381034924,1755964055629,-633.082913,0.0002789,7]
[381034925,1755964055653,-633.082913,0.0002789,7]
[381034926,1755964055674,-633.082913,0.0002789,7]
[381034927,1755964055696,-547.859475,0.0002789,7]
[381034928,1755964055719,-633.082913,0.0002789,7]
[381034929,1755964055744,-547.859475,0.0002789,7]
[381034930,1755964055766,-633.082913,0.0002789,7]
[381034931,1755964055788,-547.859475,0.0002789,7]
[381034932,1755964055810,-250.585774,0.0002789,7]
[381034933,1755964055832,-633.082913,0.0002789,7]
[381034934,1755964055856,-250.585774,0.0002789,7]
[381034935,1755964055877,-250.585774,0.0002789,7]
[381034936,1755964055900,-547.859475,0.0002789,7]
[381034937,1755964055922,-633.082913,0.0002789,7]
[381034938,1755964055945,-547.859475,0.0002789,7]
[381034939,1755964055967,-633.082913,0.0002789,7]
[381034940,1755964055988,-547.859475,0.0002789,7]
[381034941,1755964056010,-633.082913,0.0002789,7]
[381034942,1755964056032,-250.585774,0.0002789,7]
[381034943,1755964056161,-250.585774,0.0002789,7]
[381034944,1755964056183,-250.585774,0.0002789,7]
[381034945,1755964056206,-547.859475,0.0002789,7]
[381034946,1755964056228,-547.859475,0.0002789,7]
[381034947,1755964056250,-250.585774,0.0002789,7]
[381034948,1755964056272,-250.585774,0.0002789,7]
[381034949,1755964056295,-250.585774,0.0002789,7]
[381034950,1755964056317,-250.585774,0.0002789,7]
[381034951,1755964056339,-250.585774,0.0002789,7]
[381034952,1755964056361,-250.585774,0.0002789,7]
[381034953,1755964056382,-547.859475,0.0002789,7]
[381034954,1755964056403,-151.0,0.0002789,7]
[381034955,1755964056423,-151.0,0.0002789,7]
[381034956,1755964056445,-151.0,0.0002789,7]
[381034957,1755964056465,-151.0,0.0002789,7]
[381034958,1755964056486,-151.0,0.0002789,7]
[381034959,1755964056506,-151.0,0.0002789,7]
[381034960,1755964056526,-151.0,0.0002789,7]
[381034961,1755964056547,-151.0,0.0002789,7]
[381034962,1755964056569,-757.318086,0.0002789,7]
[381034963,1755964056595,-757.318086,0.0002789,7]
[381034964,1755964056619,-757.318086,0.0002789,7]
[381034965,1755964056645,-757.318086,0.0002789,7]
[381034966,1755964056678,-757.318086,0.0002789,7]
[381034967,1755964056699,-500.0,0.0002789,7]
[381034968,1755964056722,-170.0,0.00027919,2]
[381034969,1755964056751,-5888.0,0.0002793,2]
[381034970,1755964056772,-151.0,0.0002793,7]
[381034971,1755964056792,-151.0,0.0002793,7]
[381034972,1755964056813,-547.859475,0.0002793,7]
[381034973,1755964056833,-151.0,0.0002793,7]
[381034974,1755964056854,-633.082913,0.0002793,7]
[381034975,1755964056876,-633.082913,0.0002793,7]
[381034976,1755964056897,-547.859475,0.0002793,7]
[381034977,1755964056918,-633.082913,0.0002793,7]
[381034978,1755964056939,-250.585774,0.0002793,7]
[381034979,1755964056960,-547.859475,0.0002793,7]
[381034980,1755964056981,-633.082913,0.0002793,7]
[381034981,1755964057001,-250.585774,0.0002793,7]
[381034982,1755964057022,-250.585774,0.0002793,7]
[381034983,1755964057042,-250.585774,0.0002793,7]
[381034984,1755964057063,-547.859475,0.0002793,7]
[381034985,1755964057083,-172.864046,0.0002793,7]
[381034986,1755964057103,-757.318086,0.0002793,7]
[381034987,1755964057126,-170.0,0.00027937,7]
[381034988,1755964057148,-2105.41764886,0.00027944,2]
[381034989,1755964057170,-1154.39216812,0.00027958,2]
[381034990,1755964057190,-435.21755169,0.00027973,5]
[381034991,1755964057211,-500.0,0.00027973,5]
[381034992,1755964057232,-500.0,0.00027973,5]
[381034993,1755964057253,-230.04968437,0.00027973,5]
[381034994,1755964057274,-500.0,0.00027973,5]
[381034995,1755964057295,-507.2697404,0.00027973,5]
[381034996,1755964057316,-500.0,0.00027973,5]
[381034997,1755964057336,-500.0,0.00027973,5]
[381034998,1755964057359,-500.0,0.00027973,5]
[381034999,1755964057379,-500.0,0.00027973,5]
[381035000,1755964057400,-500.0,0.00027973,5]
[381035001,1755964057421,-500.0,0.00027973,5]
[381035002,1755964057442,-500.0,0.00027973,5]
[381035003,1755964057463,-500.0,0.00027973,5]
[381035004,1755964057483,-356.73797255,0.00027989,10]
[381035005,1755964057504,-500.0,0.00027989,2]
[381035006,1755964057526,-356.94296748,0.00027989,2]
[381035007,1755964057547,-205.226161,0.0002799,7]
[381035008,1755964057567,-151.0,0.0002799,7]
[381035009,1755964057586,-151.0,0.0002799,7]
[381035010,1755964057607,-151.0,0.0002799,7]